[Event "Early-Titled-Tuesday-Blitz-July-09-2024"]
[Site "Chess.com"]
[Date "2024.07.09"]
[Round "5"]
[White "MatthewG-p4p"]
[Black "Crazy_girl99"]
[Result "1-0"]
[WhiteElo "2915"]
[BlackElo "2630"]
[TimeControl "180+1"]
[EndTime "8:57:03 PDT"]
[Termination "MatthewG-p4p won by checkmate"]

1. e4 {[%clk 0:02:51.9]} 1... e5 {[%clk 0:02:58.8]} 2. Nf3 {[%clk 0:02:51.9]}
2... Nc6 {[%clk 0:02:57.5]} 3. d4 {[%clk 0:02:51.6]} 3... exd4 {[%clk
0:02:56.2]} 4. c3 {[%clk 0:02:52.1]} 4... d5 {[%clk 0:02:54.3]} 5. exd5 {[%clk
0:02:51.9]} 5... Qxd5 {[%clk 0:02:52.4]} 6. cxd4 {[%clk 0:02:52]} 6... Bb4+
{[%clk 0:02:52.2]} 7. Nc3 {[%clk 0:02:52]} 7... Bg4 {[%clk 0:02:52.7]} 8. Be2
{[%clk 0:02:52.2]} 8... Nge7 {[%clk 0:02:45.3]} 9. O-O {[%clk 0:02:51.9]} 9...
Bxc3 {[%clk 0:02:45.7]} 10. bxc3 {[%clk 0:02:52.6]} 10... O-O {[%clk 0:02:41.2]}
11. h3 {[%clk 0:02:27.3]} 11... Bh5 {[%clk 0:02:35.9]} 12. Re1 {[%clk
0:02:22.2]} 12... Rad8 {[%clk 0:02:31.7]} 13. c4 {[%clk 0:02:13.2]} 13... Qd7
{[%clk 0:02:18.1]} 14. d5 {[%clk 0:02:10.6]} 14... Nb4 {[%clk 0:02:14.3]} 15.
Ba3 {[%clk 0:01:53.9]} 15... a5 {[%clk 0:02:12.4]} 16. Bxb4 {[%clk 0:01:01.6]}
16... axb4 {[%clk 0:02:09.4]} 17. Ne5 {[%clk 0:01:01.7]} 17... Bxe2 {[%clk
0:02:07.7]} 18. Nxd7 {[%clk 0:01:01.8]} 18... Bxd1 {[%clk 0:02:06.9]} 19. Nxf8
{[%clk 0:01:02]} 19... Kxf8 {[%clk 0:01:57.6]} 20. Raxd1 {[%clk 0:01:01.4]}
20... b6 {[%clk 0:01:47.7]} 21. Rb1 {[%clk 0:00:58.7]} 21... Ra8 {[%clk
0:01:46.5]} 22. Rxb4 {[%clk 0:00:52.3]} 22... Nc8 {[%clk 0:01:40.6]} 23. Re2
{[%clk 0:00:48.3]} 23... Nd6 {[%clk 0:01:39.8]} 24. Rc2 {[%clk 0:00:48.6]} 24...
Ra5 {[%clk 0:01:38.8]} 25. f3 {[%clk 0:00:45]} 25... Ke7 {[%clk 0:01:38.1]} 26.
Kf2 {[%clk 0:00:45.5]} 26... Kd7 {[%clk 0:01:38.4]} 27. g4 {[%clk 0:00:44.4]}
27... Nb7 {[%clk 0:01:37.5]} 28. Rb3 {[%clk 0:00:43.7]} 28... Nc5 {[%clk
0:01:37.1]} 29. Re3 {[%clk 0:00:44.4]} 29... g6 {[%clk 0:01:31.8]} 30. Rce2
{[%clk 0:00:43.4]} 30... Kd6 {[%clk 0:01:29.6]} 31. Re7 {[%clk 0:00:37.8]} 31...
Nd3+ {[%clk 0:01:26.7]} 32. Kg3 {[%clk 0:00:38.2]} 32... f5 {[%clk 0:01:24.8]}
33. gxf5 {[%clk 0:00:37.5]} 33... gxf5 {[%clk 0:01:24.7]} 34. R2e6+ {[%clk
0:00:37.8]} 34... Kc5 {[%clk 0:01:25]} 35. Rxc7+ {[%clk 0:00:38.2]} 35... Kd4
{[%clk 0:01:24]} 36. d6 {[%clk 0:00:33.1]} 36... f4+ {[%clk 0:01:22.3]} 37. Kh4
{[%clk 0:00:33.3]} 37... Ne5 {[%clk 0:01:13.7]} 38. Rxe5 {[%clk 0:00:26.8]}
38... Kxe5 {[%clk 0:01:09.1]} 39. d7 {[%clk 0:00:27.2]} 39... Rxa2 {[%clk
0:01:06.4]} 40. d8=Q {[%clk 0:00:26.3]} 40... Rg2 {[%clk 0:01:06]} 41. Re7+
{[%clk 0:00:25.6]} 41... Kf5 {[%clk 0:01:06.2]} 42. Qf8+ {[%clk 0:00:25.7]}
42... Kg6 {[%clk 0:01:06.4]} 43. Qg7+ {[%clk 0:00:23.5]} 43... Kf5 {[%clk
0:01:05.5]} 44. Re5# {[%clk 0:00:23.8]} 1-0

[Event "Early-Titled-Tuesday-Blitz-July-09-2024"]
[Site "Chess.com"]
[Date "2024.07.09"]
[Round "5"]
[White "theoneandonlydaaevik"]
[Black "shimastream"]
[Result "0-1"]
[WhiteElo "2630"]
[BlackElo "2902"]
[TimeControl "180+1"]
[EndTime "8:57:03 PDT"]
[Termination "shimastream won on time"]

1. Nf3 {[%clk 0:03:00.9]} 1... d5 {[%clk 0:02:56.8]} 2. g3 {[%clk 0:03:00.6]}
2... Nd7 {[%clk 0:02:55.6]} 3. Bg2 {[%clk 0:03:00.5]} 3... e5 {[%clk 0:02:55]}
4. O-O {[%clk 0:03:00.4]} 4... Ngf6 {[%clk 0:02:54.5]} 5. d4 {[%clk 0:03:00.5]}
5... e4 {[%clk 0:02:45.6]} 6. Ne5 {[%clk 0:03:00.7]} 6... Bd6 {[%clk 0:02:45.9]}
7. c4 {[%clk 0:02:59.7]} 7... c6 {[%clk 0:02:45]} 8. Nxd7 {[%clk 0:02:32.1]}
8... Bxd7 {[%clk 0:02:44.9]} 9. Nc3 {[%clk 0:02:33]} 9... h6 {[%clk 0:02:30.2]}
10. cxd5 {[%clk 0:02:29]} 10... cxd5 {[%clk 0:02:30.3]} 11. f3 {[%clk
0:02:29.7]} 11... exf3 {[%clk 0:02:22.7]} 12. Bxf3 {[%clk 0:02:29.9]} 12... Bc6
{[%clk 0:02:22.6]} 13. Qd3 {[%clk 0:02:12.2]} 13... O-O {[%clk 0:02:16.1]} 14.
Bd2 {[%clk 0:02:12.4]} 14... Qe7 {[%clk 0:02:12.7]} 15. Rae1 {[%clk 0:02:10.5]}
15... Ne4 {[%clk 0:02:11.8]} 16. Bg2 {[%clk 0:01:52]} 16... f5 {[%clk
0:02:11.2]} 17. Bf4 {[%clk 0:01:50.3]} 17... Bb4 {[%clk 0:02:09.9]} 18. Be5
{[%clk 0:01:45.6]} 18... a6 {[%clk 0:01:57.5]} 19. Bxe4 {[%clk 0:01:18.6]} 19...
fxe4 {[%clk 0:01:56.7]} 20. Qe3 {[%clk 0:01:18.8]} 20... Qe6 {[%clk 0:01:55.8]}
21. Rc1 {[%clk 0:01:07.4]} 21... Be7 {[%clk 0:01:55]} 22. b3 {[%clk 0:00:58.9]}
22... Bg5 {[%clk 0:01:52]} 23. Bf4 {[%clk 0:00:58.1]} 23... Bf6 {[%clk
0:01:52.1]} 24. Qd2 {[%clk 0:00:39.6]} 24... Rac8 {[%clk 0:01:50.4]} 25. e3
{[%clk 0:00:19.8]} 25... Rfd8 {[%clk 0:01:45.7]} 26. Ne2 {[%clk 0:00:06.4]}
26... Bb5 {[%clk 0:01:45.6]} 27. a4 {[%clk 0:00:06.2]} 27... Bd3 {[%clk
0:01:42.3]} 28. Rxc8 {[%clk 0:00:04.7]} 28... Rxc8 {[%clk 0:01:42.4]} 29. Rc1
{[%clk 0:00:05.6]} 29... Rf8 {[%clk 0:01:25.3]} 30. Rc7 {[%clk 0:00:03.5]} 30...
g5 {[%clk 0:01:25.2]} 31. Be5 {[%clk 0:00:02.9]} 31... Bxe5 {[%clk 0:01:24.4]}
32. dxe5 {[%clk 0:00:03]} 32... Qxe5 {[%clk 0:01:25]} 33. Qc3 {[%clk 0:00:01.9]}
33... d4 {[%clk 0:01:13.4]} 34. Nxd4 {[%clk 0:00:01.5]} 34... Qf6 {[%clk
0:01:13.3]} 0-1

[Event "Early-Titled-Tuesday-Blitz-July-09-2024"]
[Site "Chess.com"]
[Date "2024.07.09"]
[Round "5"]
[White "manitodeplomo"]
[Black "eightbyeightchess"]
[Result "0-1"]
[WhiteElo "2590"]
[BlackElo "2458"]
[TimeControl "180+1"]
[EndTime "8:57:08 PDT"]
[Termination "eightbyeightchess won by resignation"]

1. e4 {[%clk 0:03:00.9]} 1... d5 {[%clk 0:02:57.8]} 2. exd5 {[%clk 0:03:00.4]}
2... Nf6 {[%clk 0:02:58.2]} 3. d4 {[%clk 0:03:00]} 3... Bg4 {[%clk 0:02:58.1]}
4. f3 {[%clk 0:03:00]} 4... Bf5 {[%clk 0:02:58.6]} 5. Bb5+ {[%clk 0:02:59.9]}
5... Nbd7 {[%clk 0:02:53.9]} 6. c4 {[%clk 0:02:56.7]} 6... a6 {[%clk 0:02:52.8]}
7. Bxd7+ {[%clk 0:02:55.8]} 7... Qxd7 {[%clk 0:02:52.6]} 8. Ne2 {[%clk
0:02:55.9]} 8... e6 {[%clk 0:02:52.2]} 9. dxe6 {[%clk 0:02:56.8]} 9... fxe6
{[%clk 0:02:52.1]} 10. Nbc3 {[%clk 0:02:52.3]} 10... c5 {[%clk 0:02:32.5]} 11.
Be3 {[%clk 0:02:51.3]} 11... Qc7 {[%clk 0:02:14]} 12. Qa4+ {[%clk 0:02:38.9]}
12... Kf7 {[%clk 0:02:14.2]} 13. O-O-O {[%clk 0:02:15.8]} 13... Be7 {[%clk
0:02:05.4]} 14. g4 {[%clk 0:02:09.6]} 14... Bg6 {[%clk 0:02:04.3]} 15. h4 {[%clk
0:02:09.2]} 15... h5 {[%clk 0:02:01]} 16. g5 {[%clk 0:01:48]} 16... b5 {[%clk
0:02:00]} 17. cxb5 {[%clk 0:01:44.2]} 17... axb5 {[%clk 0:01:59.5]} 18. Qxb5
{[%clk 0:01:39.2]} 18... Rhb8 {[%clk 0:01:59.1]} 19. gxf6 {[%clk 0:01:26.6]}
19... Rxb5 {[%clk 0:01:58]} 20. Nxb5 {[%clk 0:01:27.5]} 20... Qa5 {[%clk
0:01:42.2]} 21. Nec3 {[%clk 0:01:24.9]} 21... cxd4 {[%clk 0:01:26.3]} 22. Bxd4
{[%clk 0:01:13.8]} 22... gxf6 {[%clk 0:00:58.6]} 23. Rhe1 {[%clk 0:01:06]} 23...
Rc8 {[%clk 0:00:52.7]} 24. Kd2 {[%clk 0:00:39.3]} 24... e5 {[%clk 0:00:28.6]}
25. Be3 {[%clk 0:00:30.8]} 25... Qxb5 {[%clk 0:00:26.3]} 0-1

[Event "Early-Titled-Tuesday-Blitz-July-09-2024"]
[Site "Chess.com"]
[Date "2024.07.09"]
[Round "5"]
[White "TheoSlade"]
[Black "oykuince"]
[Result "0-1"]
[WhiteElo "2452"]
[BlackElo "2140"]
[TimeControl "180+1"]
[EndTime "8:57:08 PDT"]
[Termination "oykuince won by resignation"]

1. d4 {[%clk 0:03:00.9]} 1... d5 {[%clk 0:02:56]} 2. c4 {[%clk 0:02:59.3]} 2...
e6 {[%clk 0:02:55.8]} 3. Nf3 {[%clk 0:02:59.5]} 3... a6 {[%clk 0:02:55.3]} 4.
Bg5 {[%clk 0:02:57.1]} 4... Be7 {[%clk 0:02:53.8]} 5. Bxe7 {[%clk 0:02:57.6]}
5... Nxe7 {[%clk 0:02:54.4]} 6. Nbd2 {[%clk 0:02:55.1]} 6... O-O {[%clk
0:02:53.4]} 7. g3 {[%clk 0:02:55.4]} 7... dxc4 {[%clk 0:02:44.9]} 8. Nxc4 {[%clk
0:02:54.5]} 8... b5 {[%clk 0:02:45.4]} 9. Nce5 {[%clk 0:02:53.5]} 9... Bb7
{[%clk 0:02:44.1]} 10. Bg2 {[%clk 0:02:53.2]} 10... Nd7 {[%clk 0:02:42.1]} 11.
O-O {[%clk 0:02:51.2]} 11... Nxe5 {[%clk 0:02:40.6]} 12. Nxe5 {[%clk 0:02:51.6]}
12... Bxg2 {[%clk 0:02:40.1]} 13. Kxg2 {[%clk 0:02:52.5]} 13... Qd5+ {[%clk
0:02:39.2]} 14. Nf3 {[%clk 0:02:47.8]} 14... Rfd8 {[%clk 0:02:39.1]} 15. Qc2
{[%clk 0:02:41.4]} 15... Rac8 {[%clk 0:02:38.4]} 16. Rfc1 {[%clk 0:02:34.1]}
16... Qb7 {[%clk 0:02:30.6]} 17. Qc5 {[%clk 0:02:30.6]} 17... Rd6 {[%clk
0:02:20.5]} 18. Rc3 {[%clk 0:02:15.9]} 18... Nf5 {[%clk 0:02:18.2]} 19. Rac1
{[%clk 0:02:04.9]} 19... h6 {[%clk 0:02:16]} 20. e3 {[%clk 0:01:54.1]} 20... a5
{[%clk 0:02:11.6]} 21. a3 {[%clk 0:01:26.7]} 21... g5 {[%clk 0:02:08.6]} 22. g4
{[%clk 0:01:22.1]} 22... Nh4+ {[%clk 0:02:07]} 23. Kf1 {[%clk 0:01:12.4]} 23...
Qxf3 {[%clk 0:01:49.3]} 24. Qxb5 {[%clk 0:01:08.8]} 24... Qg2+ {[%clk
0:01:48.5]} 25. Ke1 {[%clk 0:01:07.1]} 25... Qg1+ {[%clk 0:01:48]} 26. Ke2
{[%clk 0:01:05.4]} 26... Qxg4+ {[%clk 0:01:47.2]} 27. Kf1 {[%clk 0:01:02.5]}
27... Nf3 {[%clk 0:01:43.4]} 28. Rxc7 {[%clk 0:00:53.8]} 28... Rxc7 {[%clk
0:01:17.8]} 29. Rxc7 {[%clk 0:00:54.1]} 29... Nxh2+ {[%clk 0:01:10.7]} 30. Ke1
{[%clk 0:00:53.4]} 30... Qg1+ {[%clk 0:01:09.5]} 31. Kd2 {[%clk 0:00:50.8]}
31... Qxf2+ {[%clk 0:01:08.5]} 32. Kc3 {[%clk 0:00:48.4]} 32... Qxe3+ {[%clk
0:01:08.1]} 33. Kc2 {[%clk 0:00:47]} 33... Qe4+ {[%clk 0:01:05.4]} 34. Kc1
{[%clk 0:00:39.7]} 34... Qf4+ {[%clk 0:01:03.5]} 35. Kc2 {[%clk 0:00:39.4]}
35... Rxd4 {[%clk 0:00:53.9]} 36. Qe8+ {[%clk 0:00:38]} 36... Kg7 {[%clk
0:00:53.9]} 37. Rc8 {[%clk 0:00:37.9]} 37... Rc4+ {[%clk 0:00:49.8]} 38. Kb1
{[%clk 0:00:34.5]} 38... Qc1+ {[%clk 0:00:48.4]} 39. Ka2 {[%clk 0:00:33.8]}
39... Rxc8 {[%clk 0:00:48.5]} 40. Qb5 {[%clk 0:00:32.2]} 40... Qc4+ {[%clk
0:00:47.4]} 41. Qxc4 {[%clk 0:00:32.7]} 41... Rxc4 {[%clk 0:00:47.5]} 0-1

[Event "Early-Titled-Tuesday-Blitz-July-09-2024"]
[Site "Chess.com"]
[Date "2024.07.09"]
[Round "5"]
[White "GMG"]
[Black "djano"]
[Result "0-1"]
[WhiteElo "2804"]
[BlackElo "2616"]
[TimeControl "180+1"]
[EndTime "8:57:24 PDT"]
[Termination "djano won on time"]

1. Nf3 {[%clk 0:03:00.9]} 1... g6 {[%clk 0:02:59.5]} 2. d4 {[%clk 0:02:59.5]}
2... Bg7 {[%clk 0:02:58.9]} 3. c4 {[%clk 0:03:00.1]} 3... Nf6 {[%clk 0:02:58.4]}
4. g3 {[%clk 0:03:00.1]} 4... O-O {[%clk 0:02:58.1]} 5. Bg2 {[%clk 0:03:00.6]}
5... c6 {[%clk 0:02:58.8]} 6. O-O {[%clk 0:02:58.4]} 6... d5 {[%clk 0:02:59.7]}
7. Qb3 {[%clk 0:02:58.7]} 7... a5 {[%clk 0:02:59.2]} 8. cxd5 {[%clk 0:02:52.8]}
8... a4 {[%clk 0:02:59]} 9. Qd1 {[%clk 0:02:52.6]} 9... cxd5 {[%clk 0:02:59]}
10. Nc3 {[%clk 0:02:53]} 10... Qa5 {[%clk 0:02:54.4]} 11. Bd2 {[%clk 0:02:45.3]}
11... Qa6 {[%clk 0:02:53.3]} 12. Ne5 {[%clk 0:02:35.5]} 12... Nc6 {[%clk
0:02:53.4]} 13. Bf4 {[%clk 0:02:24.8]} 13... Be6 {[%clk 0:02:43.9]} 14. Nd3
{[%clk 0:02:20.6]} 14... b6 {[%clk 0:02:31.4]} 15. Ne5 {[%clk 0:02:04.2]} 15...
Rfc8 {[%clk 0:02:25.2]} 16. Rc1 {[%clk 0:01:57.3]} 16... a3 {[%clk 0:02:05.6]}
17. bxa3 {[%clk 0:01:51.9]} 17... Na5 {[%clk 0:01:49.3]} 18. a4 {[%clk
0:01:21.4]} 18... Nc4 {[%clk 0:01:46.9]} 19. e3 {[%clk 0:01:11.7]} 19... Nd6
{[%clk 0:01:38.6]} 20. Qb3 {[%clk 0:01:06.9]} 20... Nfe4 {[%clk 0:01:25.8]} 21.
Nxd5 {[%clk 0:00:45.6]} 21... Nd2 {[%clk 0:00:56.3]} 22. Nxe7+ {[%clk
0:00:44.8]} 22... Kh8 {[%clk 0:00:56.7]} 23. Nxc8 {[%clk 0:00:16.7]} 23... Nxb3
{[%clk 0:00:53.6]} 24. Nxd6 {[%clk 0:00:12.8]} 24... Nxc1 {[%clk 0:00:50.6]} 25.
Rxc1 {[%clk 0:00:08.9]} 25... Rf8 {[%clk 0:00:49.2]} 26. Bc6 {[%clk 0:00:08.2]}
26... g5 {[%clk 0:00:46.3]} 27. Bxg5 {[%clk 0:00:05.7]} 27... f6 {[%clk
0:00:46.8]} 28. Bf4 {[%clk 0:00:02.4]} 28... fxe5 {[%clk 0:00:46.6]} 29. dxe5
{[%clk 0:00:02.6]} 29... Qa5 {[%clk 0:00:44.7]} 30. Bb5 {[%clk 0:00:01.9]} 30...
Qd2 {[%clk 0:00:44.4]} 31. Rc7 {[%clk 0:00:01.8]} 31... Bd5 {[%clk 0:00:43.2]}
0-1

[Event "Early-Titled-Tuesday-Blitz-July-09-2024"]
[Site "Chess.com"]
[Date "2024.07.09"]
[Round "5"]
[White "sofaceindisguise"]
[Black "MVM2008"]
[Result "1-0"]
[WhiteElo "2764"]
[BlackElo "2526"]
[TimeControl "180+1"]
[EndTime "8:57:25 PDT"]
[Termination "sofaceindisguise won by checkmate"]

1. d4 {[%clk 0:02:58.9]} 1... Nf6 {[%clk 0:02:59.5]} 2. Nf3 {[%clk 0:02:48.6]}
2... b6 {[%clk 0:02:57.6]} 3. Bg5 {[%clk 0:02:46.4]} 3... Ne4 {[%clk 0:02:55.8]}
4. Bf4 {[%clk 0:02:45.8]} 4... Bb7 {[%clk 0:02:55.3]} 5. Nbd2 {[%clk 0:02:45.9]}
5... e6 {[%clk 0:02:49.3]} 6. e3 {[%clk 0:02:45.6]} 6... f5 {[%clk 0:02:48.6]}
7. Nxe4 {[%clk 0:02:43.4]} 7... Bxe4 {[%clk 0:02:47.9]} 8. Bd3 {[%clk
0:02:41.8]} 8... Bb7 {[%clk 0:02:47.4]} 9. O-O {[%clk 0:02:41.4]} 9... Be7
{[%clk 0:02:47.7]} 10. c4 {[%clk 0:02:37.4]} 10... O-O {[%clk 0:02:47.1]} 11.
Rc1 {[%clk 0:02:35.4]} 11... d6 {[%clk 0:02:47.1]} 12. Bg3 {[%clk 0:02:28.4]}
12... Nd7 {[%clk 0:02:45.8]} 13. b4 {[%clk 0:02:26]} 13... a6 {[%clk 0:02:35.1]}
14. Re1 {[%clk 0:02:04.3]} 14... g5 {[%clk 0:02:22]} 15. h3 {[%clk 0:01:55.6]}
15... f4 {[%clk 0:02:13.2]} 16. exf4 {[%clk 0:01:55.8]} 16... gxf4 {[%clk
0:02:14.1]} 17. Bh2 {[%clk 0:01:53.7]} 17... e5 {[%clk 0:02:03.8]} 18. dxe5
{[%clk 0:01:50.6]} 18... Bxf3 {[%clk 0:02:02.9]} 19. Qxf3 {[%clk 0:01:49.8]}
19... Nxe5 {[%clk 0:02:03.3]} 20. Qd5+ {[%clk 0:01:43.1]} 20... Kh8 {[%clk
0:02:00.9]} 21. Bb1 {[%clk 0:01:36]} 21... Bg5 {[%clk 0:01:40]} 22. Rcd1 {[%clk
0:01:34.4]} 22... Qf6 {[%clk 0:01:36]} 23. c5 {[%clk 0:01:24]} 23... Rad8 {[%clk
0:01:20.7]} 24. cxd6 {[%clk 0:01:23.7]} 24... cxd6 {[%clk 0:01:14.5]} 25. Qe4
{[%clk 0:01:21]} 25... Rf7 {[%clk 0:01:10.1]} 26. f3 {[%clk 0:01:17.8]} 26...
Bh4 {[%clk 0:01:06.3]} 27. Re2 {[%clk 0:01:17.2]} 27... Rg8 {[%clk 0:01:05.3]}
28. Kh1 {[%clk 0:01:11.8]} 28... Rgf8 {[%clk 0:00:47.9]} 29. Bg1 {[%clk
0:01:10.5]} 29... Bg3 {[%clk 0:00:45]} 30. Bd4 {[%clk 0:01:06.2]} 30... Re7
{[%clk 0:00:36.5]} 31. Bb2 {[%clk 0:01:04.6]} 31... Rfe8 {[%clk 0:00:36]} 32.
Red2 {[%clk 0:00:56.2]} 32... Rd8 {[%clk 0:00:27.2]} 33. Rd5 {[%clk 0:00:50.1]}
33... Bh4 {[%clk 0:00:04.8]} 34. Bxe5 {[%clk 0:00:47.1]} 34... Rxe5 {[%clk
0:00:04.9]} 35. Qxh7# {[%clk 0:00:46.7]} 1-0

[Event "Early-Titled-Tuesday-Blitz-July-09-2024"]
[Site "Chess.com"]
[Date "2024.07.09"]
[Round "5"]
[White "SahibSinghKnight"]
[Black "michaelskie11"]
[Result "1-0"]
[WhiteElo "2682"]
[BlackElo "2399"]
[TimeControl "180+1"]
[EndTime "8:57:28 PDT"]
[Termination "SahibSinghKnight won by resignation"]

1. e4 {[%clk 0:03:00.9]} 1... e6 {[%clk 0:03:00.2]} 2. d4 {[%clk 0:02:58.7]}
2... d5 {[%clk 0:03:00.4]} 3. Nc3 {[%clk 0:02:58.2]} 3... Bb4 {[%clk 0:02:59.8]}
4. e5 {[%clk 0:02:56.2]} 4... c5 {[%clk 0:03:00.4]} 5. a3 {[%clk 0:02:54.6]}
5... Bxc3+ {[%clk 0:03:01]} 6. bxc3 {[%clk 0:02:55.5]} 6... Qa5 {[%clk
0:03:00.7]} 7. Bd2 {[%clk 0:02:52.5]} 7... Qa4 {[%clk 0:03:01.1]} 8. Qb1 {[%clk
0:02:48.7]} 8... c4 {[%clk 0:03:00.2]} 9. Qb4 {[%clk 0:02:46.6]} 9... Qxc2
{[%clk 0:02:49.7]} 10. Be2 {[%clk 0:02:32.4]} 10... Nc6 {[%clk 0:02:47.6]} 11.
Qb5 {[%clk 0:02:17.1]} 11... Ne7 {[%clk 0:02:38.8]} 12. Nf3 {[%clk 0:02:09.8]}
12... Qe4 {[%clk 0:02:31.4]} 13. Ng5 {[%clk 0:02:06]} 13... Qc2 {[%clk
0:02:14.1]} 14. Bd1 {[%clk 0:01:55.2]} 14... Qd3 {[%clk 0:02:00.8]} 15. Qb2
{[%clk 0:01:55.1]} 15... Qg6 {[%clk 0:01:47.3]} 16. h4 {[%clk 0:01:53.5]} 16...
h6 {[%clk 0:01:29.7]} 17. h5 {[%clk 0:01:53]} 17... Qf5 {[%clk 0:01:29.5]} 18.
g4 {[%clk 0:01:46]} 18... Qd3 {[%clk 0:01:18.1]} 19. Be2 {[%clk 0:01:46.1]}
19... hxg5 {[%clk 0:00:38]} 20. Bxd3 {[%clk 0:01:46.1]} 20... cxd3 {[%clk
0:00:38.9]} 21. Bxg5 {[%clk 0:01:45.6]} 21... b6 {[%clk 0:00:36.7]} 22. Qb5
{[%clk 0:01:35.9]} 22... Bd7 {[%clk 0:00:34.6]} 23. Qxd3 {[%clk 0:01:35.6]}
23... Na5 {[%clk 0:00:33.1]} 24. f4 {[%clk 0:01:17.2]} 24... Rc8 {[%clk
0:00:31.6]} 25. Rh3 {[%clk 0:00:49.1]} 25... Nc4 {[%clk 0:00:29]} 26. Kf2 {[%clk
0:00:41.6]} 26... Ba4 {[%clk 0:00:26.6]} 27. Rah1 {[%clk 0:00:39.3]} 27... Bb5
{[%clk 0:00:18.9]} 28. Qb1 {[%clk 0:00:29]} 28... a6 {[%clk 0:00:18.5]} 29. a4
{[%clk 0:00:28.1]} 29... Bxa4 {[%clk 0:00:18.7]} 30. Qb4 {[%clk 0:00:27.8]}
30... Nc6 {[%clk 0:00:12.4]} 31. Qxa4 {[%clk 0:00:27.8]} 31... Ra8 {[%clk
0:00:12]} 32. Qxc6+ {[%clk 0:00:27.7]} 1-0

[Event "Early-Titled-Tuesday-Blitz-July-09-2024"]
[Site "Chess.com"]
[Date "2024.07.09"]
[Round "5"]
[White "edgarhay012"]
[Black "VaglioSagan"]
[Result "1-0"]
[WhiteElo "2710"]
[BlackElo "2506"]
[TimeControl "180+1"]
[EndTime "8:57:29 PDT"]
[Termination "edgarhay012 won on time"]

1. e4 {[%clk 0:03:00.9]} 1... c6 {[%clk 0:02:54.3]} 2. d4 {[%clk 0:03:00.7]}
2... d5 {[%clk 0:02:52.8]} 3. Nc3 {[%clk 0:03:01.2]} 3... dxe4 {[%clk
0:02:51.2]} 4. Nxe4 {[%clk 0:03:02]} 4... Nf6 {[%clk 0:02:51.5]} 5. Ng5 {[%clk
0:03:02.7]} 5... Bf5 {[%clk 0:02:36.3]} 6. N1f3 {[%clk 0:03:02.3]} 6... Nbd7
{[%clk 0:02:20.5]} 7. Bd3 {[%clk 0:02:41]} 7... Bxd3 {[%clk 0:02:12.1]} 8. Qxd3
{[%clk 0:02:41.9]} 8... e6 {[%clk 0:02:03.4]} 9. O-O {[%clk 0:02:36.4]} 9... Bd6
{[%clk 0:02:02.2]} 10. Bd2 {[%clk 0:02:32.8]} 10... O-O {[%clk 0:01:58.5]} 11.
Rae1 {[%clk 0:02:33.1]} 11... Qc7 {[%clk 0:01:41.9]} 12. h3 {[%clk 0:02:29.2]}
12... Rad8 {[%clk 0:01:34.7]} 13. c3 {[%clk 0:02:23.1]} 13... e5 {[%clk
0:01:26.2]} 14. Qf5 {[%clk 0:02:11.7]} 14... h6 {[%clk 0:01:13.2]} 15. Ne4
{[%clk 0:02:05]} 15... Nxe4 {[%clk 0:01:12]} 16. Qxe4 {[%clk 0:02:04.9]} 16...
exd4 {[%clk 0:01:10.2]} 17. Nxd4 {[%clk 0:02:03.9]} 17... Nf6 {[%clk 0:01:04.5]}
18. Qh4 {[%clk 0:02:03.8]} 18... Bh2+ {[%clk 0:00:33.3]} 19. Kh1 {[%clk
0:02:02.3]} 19... c5 {[%clk 0:00:34]} 20. Bxh6 {[%clk 0:01:55.7]} 20... cxd4
{[%clk 0:00:13.9]} 21. Qg5 {[%clk 0:01:53.7]} 21... Nh5 {[%clk 0:00:14.5]} 22.
Qxh5 {[%clk 0:01:42.3]} 22... gxh6 {[%clk 0:00:14.4]} 23. Re4 {[%clk 0:01:42.6]}
23... f5 {[%clk 0:00:13.5]} 24. Re6 {[%clk 0:01:36.6]} 24... Bf4 {[%clk
0:00:07.9]} 25. Rfe1 {[%clk 0:01:17.4]} 25... Rd7 {[%clk 0:00:07.2]} 26. cxd4
{[%clk 0:01:15.5]} 26... Rg7 {[%clk 0:00:06.9]} 27. d5 {[%clk 0:01:04.2]} 27...
Qf7 {[%clk 0:00:06.6]} 28. Qf3 {[%clk 0:01:04.1]} 28... Bg5 {[%clk 0:00:05.6]}
29. d6 {[%clk 0:01:03.8]} 29... Qd7 {[%clk 0:00:05.6]} 30. Qd5 {[%clk
0:01:03.3]} 30... Kh7 {[%clk 0:00:05.6]} 31. b3 {[%clk 0:00:55.9]} 31... Rf6
{[%clk 0:00:05.9]} 32. a4 {[%clk 0:00:47.9]} 32... Rgf7 {[%clk 0:00:05.8]} 33.
Re7 {[%clk 0:00:44.6]} 33... Rxe7 {[%clk 0:00:01]} 34. Rxe7+ {[%clk 0:00:43.9]}
34... Qxe7 {[%clk 0:00:01.6]} 35. dxe7 {[%clk 0:00:44.8]} 1-0